[Event "Dutch Open 2022"]
[Site "Dieren"]
[Date "2022.07.28"]
[Round "3.11"]
[White "Achuthan, Dylan"]
[Black "Mollema, Thomas"]
[Result "0-1"]
[ECO "A08"]
[WhiteElo "1989"]
[BlackElo "2235"]
[Annotator "TA"]
[PlyCount "63"]
[EventDate "2022.07.14"]
[EventType "swiss"]
[EventCountry "NED"]
[SourceTitle "playchess.com"]
[Source "ChessBase"]
[SourceQuality "1"]
[TimeControl "40/5400+30:1800+30"]

{[%evp 22,63,-24,-22,-13,-45,-54,-58,0,0,25,0,0,10,22,0,0,2,-11,-15,12,-46,-16,-36,-16,-81,-77,-87,-90,-114,-62,-68,-70,-146,-30,-250,-237,-247,-232,-277,-275,-309,-315,-1130]} 1. Nf3 {[%emt 1:31:00]} d5 {[%emt 0:00:14]} 2. g3 {[%emt 0:00:00]} Nf6 {[%emt 0:00:17]} 3. Bg2 {[%emt 0:00:00]} c5 {[%emt 0:00:29]} 4. d3 {[%emt 0:00:00]} Nc6 {[%emt 0:00:15]} 5. Nbd2 {[%emt 0:00:00]} g6 {[%emt 0:05:02]} 6. O-O {[%emt 0:00:00]} Bg7 {[%emt 0:00:57]} 7. e4 {[%emt 0:00:00]} O-O {[%emt 0:01:49]} 8. c3 {[%emt 0:00:00]} e5 {[%emt 0:06:07]} 9. Re1 {[%emt 0:00:00]} Re8 {[%emt 0:00:13]} 10. a4 {[%emt 0:00:00]} h6 {[%emt 0:03:08]} 11. exd5 {[%emt 0:00:00]} Nxd5 {[%emt 0:00:23]} 12. Nc4 {[%emt 0:00:00]} Bf5 {[%emt 0:11:20] A08: King's Indian Attack.} 13. Ne3 {[%emt 0:00:00]} Nxe3 {[%emt 0:01:50]} 14. Bxe3 {[%emt 0:00:00]} Qd6 {[%emt 0:06:51]} (14... Bxd3 $15 15. Bxc5 b6) 15. Nd2 $11 {[%emt 0:00:00] [#]} Qxd3 $146 {[%emt 0:08:43]} ({Much less strong is} 15... Bxd3 16. Ne4 Qd8 17. Nxc5 $16) ({Predecessor:} 15... b6 16. Ne4 Qc7 17. Qf3 Rac8 18. h3 Qe7 19. g4 Bxe4 20. dxe4 {½-½ (36) Klenburg,M (2379)-Rabinovich,A (2442) Israel 2002}) 16. Bxc5 {[%emt 0:00:00]} (16. a5 $5 {[%cal Ra5a6]}) 16... Rad8 {[%emt 0:00:27]} 17. Be3 {[%emt 0:00:00]} Na5 {[%emt 0:13:24]} 18. Bf1 {[%emt 0:00:00]} Qd7 {[%emt 0:08:25]} 19. Bb5 {[%emt 0:00:00]} Nc6 {[%emt 0:00:05]} 20. Qb3 {[%emt 0:00:00]} Bh3 {[%emt 0:03:27]} 21. Bf1 {[%emt 0:00:00]} (21. Rad1 $11) 21... Bxf1 {[%emt 0:00:20]} 22. Rxf1 {[%emt 0:00:00]} e4 {[%emt 0:02:06]} (22... Nd4 $5 23. cxd4 exd4 $15) 23. Kg2 {[%emt 0:04:43] Prevents Qh3+.} (23. Rad1 $11 {remains equal.}) 23... b6 $17 {[%emt 0:06:57]} 24. Nc4 {[%emt 0:02:16] [#]} Qe6 $1 {[%emt 0:00:52]} 25. Nd2 {[%emt 0:01:05] [#]} Qf5 {[%emt 0:01:49]} (25... Rd5 $1 $17 26. h3 Red8) 26. Qb5 {[%emt 0:00:46]} Ne5 {[%emt 0:00:14][%cal Bc6e5,Be5d3,Bd3b2][%mdl 32] Black is more active.} 27. Bf4 {[%emt 0:01:29]} (27. a5 $15) 27... Re6 {[%emt 0:04:59]} ({Better is} 27... Qe6 $17 {Threatens to win with ...Rd5.} 28. a5 Nd3) 28. Qe2 $2 {[%emt 0:01:02] White does not recover from this.} (28. Nc4 $11 {and White has nothing to worry.}) 28... Nd3 $19 {[%emt 0:00:35]} 29. Be3 {[%emt 0:01:00]} Nxb2 {[%emt 0:00:23]} 30. Nb3 {[%emt 0:00:46]} Bxc3 {[%emt 0:00:56]} 31. Rac1 {[%emt 0:01:20]} Bg7 {[%emt 0:00:45]} ({Don't blunder} 31... Nxa4 $2 32. Qa6 b5 33. Qxa7) 32. Rfd1 $2 {[%emt 0:00:53] Weighted Error Value: White=0.41/Black=0.23 (precise)} (32. Ra1) 0-1

[Event "Dutch Open 2022"]
[Site "Dieren"]
[Date "2022.07.28"]
[Round "3.12"]
[White "Shakhverdian, William"]
[Black "Albers, Sasa"]
[Result "1/2-1/2"]
[ECO "B11"]
[WhiteElo "2040"]
[BlackElo "2203"]
[Annotator "TA"]
[PlyCount "56"]
[EventDate "2022.07.14"]
[EventType "swiss"]
[EventCountry "NED"]
[SourceTitle "playchess.com"]
[Source "ChessBase"]
[SourceQuality "1"]
[TimeControl "40/5400+30:1800+30"]

{[%evp 13,56,20,34,18,25,34,25,24,19,20,19,26,23,19,27,14,17,14,33,16,25,18,14,20,15,13,14,0,0,-8,7,2,3,4,0,0,7,7,7,-7,0,0,0,0,1]} 1. e4 {[%emt 0:00:03]} c6 {[%emt 0:08:38]} 2. Nc3 {[%emt 0:00:17]} d5 {[%emt 0:00:09]} 3. Qf3 {[%emt 0:00:19]} dxe4 {[%emt 0:15:57]} 4. Nxe4 {[%emt 0:00:43]} Nd7 {[%emt 0:07:37]} 5. d4 {[%emt 0:01:04]} Ndf6 {[%emt 0:00:36]} 6. c3 {[%emt 0:01:25]} Nxe4 {[%emt 0:00:53]} 7. Qxe4 {[%emt 0:00:06]} Nf6 {[%emt 0:00:07]} 8. Qc2 {[%emt 0:00:04] B11: Caro-Kann: Two Knights Variation.} Qd5 {[%emt 0:06:59]} 9. Nf3 {[%emt 0:00:15] Against e5} Bf5 {[%emt 0:00:21]} 10. Qb3 {[%emt 0:00:47] White has an edge.} Qxb3 {[%emt 0:01:06]} 11. axb3 {[%emt 0:00:08]} e6 {[%emt 0:02:14]} 12. b4 {[%emt 0:00:09]} Bd6 {[%emt 0:03:16] [#]} 13. Bc4 $146 {[%emt 0:08:51]} ({Predecessor:} 13. b5 cxb5 14. Bxb5+ Ke7 15. Ne5 a6 16. Be2 Rhd8 17. g4 Bc2 18. h4 Rac8 19. Nc4 {½-½ (36) Nowak,I (2210)-Delgado,R (2202) LSS email 2018}) 13... h6 {[%emt 0:06:11]} 14. O-O {[%emt 0:01:07]} O-O {[%emt 0:01:47]} 15. Re1 {[%emt 0:03:44]} Nd7 {[%emt 0:04:29]} 16. h3 {[%emt 0:07:06]} a6 {[%emt 0:00:43]} 17. Bb3 {[%emt 0:20:27]} Bc7 {[%emt 0:02:42] The position is equal.} 18. Be3 {[%emt 0:01:07]} Rfe8 {[%emt 0:01:18]} 19. g4 {[%emt 0:02:42]} Bh7 {[%emt 0:02:59]} 20. Red1 {[%emt 0:09:43]} Rad8 {[%emt 0:03:04]} 21. Ne1 {[%emt 0:03:41]} Nb6 {[%emt 0:02:38]} 22. Nd3 {[%emt 0:02:41]} Bxd3 {[%emt 0:01:32]} 23. Rxd3 {[%emt 0:00:05]} Nd5 {[%emt 0:01:43]} 24. Bd2 {[%emt 0:04:24]} Nf4 {[%emt 0:03:11]} 25. Bxf4 {[%emt 0:02:03]} Bxf4 {[%emt 0:00:07]} 26. Rad1 {[%emt 0:00:21]} Rd7 {[%emt 0:03:36]} 27. Kg2 {[%emt 0:00:52]} Red8 {[%emt 0:01:24]} 28. Kf3 {[%emt 0:00:44]} Bc7 {[%emt 0:02:10] A balanced but interesting game.  Weighted Error Value: White=0.05 (flawless) /Black=0.03 (flawless)} 1/2-1/2

[Event "Dutch Open 2022"]
[Site "Dieren"]
[Date "2022.07.28"]
[Round "3.13"]
[White "Vos, Tjark"]
[Black "Saketh, Pedagandham"]
[Result "1-0"]
[ECO "C89"]
[WhiteElo "2224"]
[BlackElo "1928"]
[Annotator "TA"]
[PlyCount "91"]
[EventDate "2022.07.14"]
[EventType "swiss"]
[EventCountry "NED"]
[SourceTitle "playchess.com"]
[Source "ChessBase"]
[SourceQuality "1"]
[TimeControl "40/5400+30:1800+30"]

{[%evp 20,91,43,19,43,31,36,39,38,46,35,33,46,43,52,35,84,51,65,42,98,96,89,51,96,93,198,187,193,185,193,190,194,152,147,156,142,143,160,148,148,149,140,140,135,96,146,86,94,0,0,0,0,0,29978,29979,29979,29980,29980,29976,2370,2268,1855,1797,1750,1293,1519,1261,1254,1124,29979,29979,29978,29971]} 1. e4 {[%emt 0:00:01]} e5 {[%emt 0:06:25]} 2. Nf3 {[%emt 1:31:29]} Nc6 {[%emt 0:00:17]} 3. Bb5 {[%emt 0:00:00]} a6 {[%emt 0:00:08]} 4. Ba4 {[%emt 0:00:00]} Nf6 {[%emt 0:00:06]} 5. O-O {[%emt 0:00:00]} Be7 {[%emt 0:00:03]} 6. d3 {[%emt 0:00:00]} b5 {[%emt 0:00:15]} 7. Bb3 {[%emt 0:00:00]} O-O {[%emt 0:00:05]} 8. c3 {[%emt 0:00:00]} d5 {[%emt 0:07:14]} 9. Nbd2 {[%emt 0:00:00][%cal Bb1d2,Bd2f1,Bf1g3][%mdl 32]} Bg4 {[%emt 0:03:25]} 10. h3 {[%emt 0:00:00]} Bh5 {[%emt 0:02:15]} 11. Re1 {[%emt 0:00:00]} dxe4 {[%emt 0:01:11] C89: Closed Ruy Lopez: Marshall Attack.} 12. dxe4 {[%emt 0:00:00]} Re8 {[%emt 0:02:51] [#]} 13. Qe2 $146 {[%emt 0:00:00]} ({Predecessor:} 13. Nf1 Qxd1 14. Bxd1 Rad8 15. Ng3 Bg6 16. Bc2 Bf8 17. Nh4 Na5 18. Nxg6 hxg6 19. b3 c5 20. Be3 Nb7 21. Rad1 Be7 22. Rxd8 Rxd8 23. Rd1 Rxd1+ {½-½ (23) Martinez Gallardo,J (1617)-Garcia Gonzalez,P (1821) Madrid 2018}) 13... Bf8 {[%emt 0:00:57] White is slightly better.} 14. Nf1 {[%emt 0:00:00]} Na5 {[%emt 0:02:00]} 15. Bc2 {[%emt 0:00:00]} c5 {[%emt 0:00:29]} 16. Ng3 {[%emt 0:00:00]} Bg6 {[%emt 0:01:18]} 17. Nh4 {[%emt 0:00:00]} Nc6 {[%emt 0:09:21]} (17... Nh5 $14 18. Ngf5 (18. Nxh5 Qxh4 19. Ng3 Qf6 $11) (18. Nxg6 Nxg3 19. Qf3 hxg6 $14) 18... Bxf5 19. Nxf5 Nf4) 18. Qf3 {[%emt 0:00:00]} Qc7 {[%emt 0:05:36]} 19. Nhf5 {[%emt 0:00:00]} Rad8 {[%emt 0:02:37]} (19... Nd8 $14) 20. Bg5 $16 {[%emt 0:00:00]} Re6 {[%emt 0:01:13]} 21. Rad1 {[%emt 0:00:00]} Ne7 {[%emt 0:03:45]} 22. h4 {[%emt 0:00:00][%cal Bh3h4,Bh4h5][%mdl 32]} c4 {[%emt 0:07:02]} (22... Rxd1 $16 {keeps fighting.} 23. Rxd1 h5) 23. Rxd8 $18 {[%emt 0:00:00]} Qxd8 {[%emt 0:00:33] [#]} 24. h5 $1 {[%emt 0:00:00]} Bxf5 {[%emt 0:01:12]} 25. exf5 {[%emt 0:00:00]} Rd6 {[%emt 0:00:42]} 26. Rxe5 {[%emt 0:00:00][%cal Oh5h6]} h6 {[%emt 0:00:16]} 27. Bxf6 {[%emt 0:00:00]} gxf6 {[%emt 0:00:09]} 28. Re2 {[%emt 0:00:00]} Rd2 {[%emt 0:08:01]} 29. Ne4 {[%emt 0:00:00][%csl LRd2,LRf6]} Rxe2 {[%emt 0:00:26]} 30. Qxe2 {[%emt 0:00:00]} Nc6 {[%emt 0:00:22]} 31. b3 {[%emt 0:00:00]} Ne5 {[%emt 0:06:07]} 32. Qe3 {[%emt 0:00:00]} Kh8 {[%emt 0:05:54]} (32... cxb3 $142 33. axb3 (33. Bxb3 Kg7 $16) 33... a5) 33. Qa7 {[%emt 0:00:39]} ({Better is} 33. b4) 33... Qa5 $16 {[%emt 0:07:51]} 34. f4 {[%emt 0:10:06]} (34. Qd4 $16 Be7 35. a4) 34... Qxa2 $11 {[%emt 0:03:02]} 35. fxe5 {[%emt 0:00:07][%cal Oa7f7]} Qxc2 {[%emt 0:00:45]} 36. Qxf7 {[%emt 0:02:13] Active counter play!} Qxe4 $4 {[%emt 0:04:43][%mdl 8192] [#]} (36... Bc5+ $11 37. Nxc5 Qc1+ 38. Kh2 Qf4+ 39. g3 Qf2+ 40. Kh3 Qf1+ 41. Kh4 Qh1+ 42. Kg4 Qd1+ 43. Kh4 Qh1+ 44. Kg4 Qd1+ 45. Kf4 (45. Kh4 Qh1+ $16) 45... Qf1+ 46. Ke4 (46. Kg4 Qe2+ 47. Kh3 Qf1+ 48. Kh4 Qh1+ $16) 46... Qg2+ 47. Kd4 (47. Kf4 Qf1+ 48. Ke4 Qh1+ 49. Kf4 Qc1+ 50. Kg4 Qd1+ $16) 47... Qd2+ 48. Ke4 Qg2+ 49. Kf4 Qf2+ 50. Kg4 Qe2+ 51. Kh3 Qf1+ 52. Kh4 Qh1+) 37. Qxf8+ {[%emt 0:00:06] KQ-KQ} Kh7 {[%emt 0:00:03]} 38. Qf7+ {[%emt 0:00:17]} Kh8 {[%emt 0:00:03]} 39. Qxf6+ {[%emt 0:00:17]} Kg8 {[%emt 0:00:15]} 40. Qg6+ {[%emt 0:01:11]} Kf8 {[%emt 0:00:04]} 41. Qxh6+ {[%emt 0:30:25]} Ke8 {[%emt 0:30:00]} 42. Qg6+ {[%emt 0:00:52]} Kd8 {[%emt 0:00:16]} 43. Qb6+ {[%emt 0:00:48]} Ke8 {[%emt 0:00:01]} 44. Qb8+ {[%emt 0:00:42]} Ke7 {[%emt 0:00:07]} 45. f6+ {[%emt 0:00:49]} Kd7 {[%emt 0:01:00]} 46. Qd6+ {[%emt 0:00:16] Weighted Error Value: White=0.14 (very precise) /Black=0.58} 1-0

[Event "Dutch Open 2022"]
[Site "Dieren"]
[Date "2022.07.28"]
[Round "3.14"]
[White "Ochs, Daniel Elias"]
[Black "Op den Dries, Johan"]
[Result "1/2-1/2"]
[ECO "D07"]
[WhiteElo "2156"]
[BlackElo "2104"]
[Annotator "TA"]
[PlyCount "57"]
[EventDate "2022.07.14"]
[EventType "swiss"]
[EventCountry "NED"]
[SourceTitle "playchess.com"]
[Source "ChessBase"]
[SourceQuality "1"]
[TimeControl "40/5400+30:1800+30"]

{[%evp 9,57,20,39,43,46,27,21,28,18,23,42,32,66,66,85,70,56,64,77,14,13,14,21,14,26,12,24,10,6,8,15,9,8,7,83,35,39,30,39,10,70,54,56,56,56,53,63,21,20,8]} 1. d4 {[%emt 0:00:06]} d5 {[%emt 0:00:04]} 2. c4 {[%emt 0:00:04]} Nc6 {[%emt 0:00:03]} 3. Nf3 {[%emt 0:00:05]} Bg4 {[%emt 0:00:06]} 4. Nc3 {[%emt 0:00:04]} e6 {[%emt 0:00:35]} 5. cxd5 {[%emt 0:00:48]} exd5 {[%emt 0:00:07]} 6. Qb3 {[%emt 0:00:12][%csl LRb7,LRd5] D07: Queen's Gambit: Chigorin Defence.} Bb4 {[%emt 0:03:25]} 7. Ne5 {[%emt 0:03:07]} Bxc3+ {[%emt 0:01:45]} 8. bxc3 {[%emt 0:00:08]} Nxe5 {[%emt 0:00:10]} 9. dxe5 {[%emt 0:00:04]} Ne7 {[%emt 0:02:19]} 10. Ba3 {[%emt 0:00:47]} Be6 {[%emt 0:03:32] [#]} 11. Qxb7 $146 {[%emt 0:11:24]} ({Predecessor:} 11. Rd1 O-O 12. e4 Re8 13. exd5 Nxd5 14. c4 Qg5 15. Qg3 Qxg3 16. hxg3 Nb6 17. Rh4 {0-1 (37) Rabadan Velasco,R (2325)-Flores Chico,J (2096) Burguillos 2007}) 11... O-O {[%emt 0:00:10]} 12. e3 {[%emt 0:02:50]} Re8 {[%emt 0:01:45]} 13. Be2 {[%emt 0:06:43]} Ng6 {[%emt 0:02:56]} 14. O-O {[%emt 0:02:19] White is more active.} (14. f4 $16) 14... Nxe5 $11 {[%emt 0:02:32]} 15. Rad1 {[%emt 0:09:38]} Rb8 {[%emt 0:04:13]} 16. Qa6 {[%emt 0:03:41]} Qf6 {[%emt 0:07:26]} 17. f4 {[%emt 0:16:06][%cal Bf2f4,Bf4f5][%mdl 32]} ({Don't go for} 17. Qxa7 $2 Ra8 18. Qc5 Nd7 $17) 17... Nc4 {[%emt 0:08:01]} 18. Bxc4 {[%emt 0:00:50]} dxc4 {[%emt 0:01:22]} 19. f5 {[%emt 0:00:19]} Bc8 {[%emt 0:02:56]} 20. Qxf6 {[%emt 0:00:23]} ({Wrong is} 20. Qxc4 $2 Ba6 21. Qxc7 Bxf1 22. Rxf1 Rbc8 23. Qxa7 Qxc3 $19) 20... gxf6 {[%emt 0:00:04]} 21. Rf4 $36 {[%emt 0:00:31][%mdl 2048] White has some pressure.} Rb5 {[%emt 0:02:35]} (21... h5 $11 {remains equal.}) 22. Rg4+ {[%emt 0:14:14]} Kh8 {[%emt 0:00:14]} 23. Be7 {[%emt 0:03:07][%cal Re7f6] [#]} Rxf5 {[%emt 0:00:31]} 24. e4 {[%emt 0:00:50]} Rf1+ {[%emt 0:00:18]} 25. Rxf1 {[%emt 0:00:12][%cal Re7f6]} Bxg4 {[%emt 0:00:27]} 26. Bxf6+ {[%emt 0:00:04]} Kg8 {[%emt 0:00:04]} 27. Rb1 {[%emt 0:01:08]} h6 {[%emt 0:01:15]} 28. Bd4 {[%emt 0:01:06]} Rxe4 {[%emt 0:02:52]} 29. Bxa7 {[%emt 0:00:13] Weighted Error Value: White=0.14 (very precise) /Black=0.17 (very precise)} 1/2-1/2

[Event "Dutch Open 2022"]
[Site "Dieren"]
[Date "2022.07.28"]
[Round "3.15"]
[White "De Boer, Bas"]
[Black "Pijkeren, Jan"]
[Result "0-1"]
[ECO "A57"]
[WhiteElo "2136"]
[BlackElo "2196"]
[Annotator "TA"]
[PlyCount "126"]
[EventDate "2022.07.14"]
[EventType "swiss"]
[EventCountry "NED"]
[SourceTitle "playchess.com"]
[Source "ChessBase"]
[SourceQuality "1"]
[TimeControl "40/5400+30:1800+30"]

{[%evp 25,126,14,15,19,51,55,52,39,50,31,39,49,76,75,75,82,129,137,153,96,90,91,97,99,95,83,97,102,94,91,133,132,143,148,142,144,206,214,185,149,162,157,153,139,134,15,43,35,39,37,39,13,12,5,89,0,0,0,0,0,12,0,0,0,0,0,0,0,0,0,42,0,0,0,51,0,0,2,6,5,15,12,106,130,134,148,225,206,250,89,89,87,96,-115,0,-10,-14,-310,-300,-1136,-978,-956,-933]} 1. d4 {[%emt 0:00:03]} Nf6 {[%emt 0:00:04]} 2. c4 {[%emt 0:00:06]} c5 {[%emt 0:00:02]} 3. d5 {[%emt 0:00:06]} b5 {[%emt 0:00:03]} 4. cxb5 {[%emt 0:00:10]} a6 {[%emt 0:00:04]} 5. b6 {[%emt 0:00:44]} e6 {[%emt 0:00:43]} 6. Nc3 {[%emt 0:00:26]} Nxd5 {[%emt 0:00:15]} 7. Nxd5 {[%emt 0:00:09]} exd5 {[%emt 0:00:05]} 8. Qxd5 {[%emt 0:00:17]} Nc6 {[%emt 0:00:05]} 9. e4 {[%emt 0:00:41]} Be7 {[%emt 0:01:37]} 10. Bc4 {[%emt 0:00:07]} O-O {[%emt 0:00:12]} 11. Nf3 {[%emt 0:00:07]} Rb8 {[%emt 0:04:14]} 12. O-O {[%emt 0:00:09]} Rxb6 {[%emt 0:00:30]} 13. Qh5 {[%emt 0:03:49]} d6 {[%emt 0:09:31]} 14. b3 {[%emt 0:06:20] A57: Benko/Volga Gambit.} Bf6 {[%emt 0:09:58] [#] Threatens to win with ...g6.} 15. Ng5 $1 {[%emt 0:08:23]} Bxg5 {[%emt 0:00:15]} 16. Bxg5 {[%emt 0:00:03] White is slightly better.} Qe8 {[%emt 0:00:16]} 17. Rad1 {[%emt 0:11:58]} Ne5 {[%emt 0:07:19] White must now prevent ...Bg4.} 18. Be2 {[%emt 0:06:14] Inhibits Bg4.} f6 {[%emt 0:04:50]} 19. Qxe8 {[%emt 0:00:23]} Rxe8 {[%emt 0:00:01]} 20. Bd2 {[%emt 0:04:05][%cal Bg5d2,Bd2a5,Ba5c3][%mdl 32] [#]} Kf8 $146 {[%emt 0:07:24]} (20... Bd7 $142) ({Predecessor:} 20... Nf7 21. Ba5 Rc6 22. Rfe1 Kf8 23. f3 Bd7 24. Bc3 Rb6 25. Rd2 Bb5 26. Bd1 f5 {1-0 (37) Yermolinsky,A (2575)-Bartholomew,J (2307) Las Vegas 2002}) 21. Ba5 $16 {[%emt 0:06:51]} Rc6 {[%emt 0:00:45]} 22. Rd2 {[%emt 0:01:37]} ({White should try} 22. f4 Ng4 23. Rfe1) 22... Bg4 {[%emt 0:08:11]} 23. f3 $1 {[%emt 0:01:16]} Bh5 {[%emt 0:00:35]} 24. Rfd1 {[%emt 0:15:12][%cal Bf1d1,Bd1h1,Bh1h6][%mdl 32]} Ke7 {[%emt 0:00:50]} 25. Bc3 {[%emt 0:00:46] This bishop pair is nice.} Rd8 {[%emt 0:03:24]} 26. Kf2 {[%emt 0:33:28]} g5 {[%emt 0:06:17]} 27. h4 {[%emt 0:00:00]} h6 {[%emt 0:07:33]} 28. Rh1 {[%emt 0:00:00]} Bg6 {[%emt 0:01:27]} 29. hxg5 {[%emt 0:00:00]} hxg5 {[%emt 0:00:05]} 30. g3 {[%emt 0:00:00]} g4 {[%emt 0:14:34]} (30... c4 $16 {might work better.}) 31. f4 $1 $18 {[%emt 0:00:00]} Bxe4 {[%emt 0:00:48]} 32. Rh6 {[%emt 0:00:00]} (32. fxe5 Bxh1 33. exf6+ Kf8 $15) 32... Nd7 {[%emt 0:01:52]} 33. Bxg4 {[%emt 0:00:00]} d5 {[%emt 0:00:50]} 34. Re2 {[%emt 0:00:00]} Kf7 {[%emt 0:01:13]} 35. f5 {[%emt 0:00:00]} (35. Ba5 $1 $16 {[%cal Ra5d8]} Nb6 36. Bf3) 35... Rg8 {[%emt 0:06:58]} 36. Bh5+ {[%emt 0:00:00]} Kg7 {[%emt 0:00:25]} 37. Rg6+ {[%emt 0:01:45]} Kf8 {[%emt 0:00:22]} 38. g4 {[%emt 0:00:37] Strongly threatening Rxg8+.} Rxg6 {[%emt 0:02:22]} 39. Bxg6 {[%emt 0:00:09]} Ne5 {[%emt 0:01:06]} (39... Ke7 $11 {keeps the balance.}) 40. Bh5 {[%emt 0:02:23]} (40. Bxe5 $16 fxe5 41. Kg3) 40... Nf3 $11 {[%emt 0:02:40]} 41. Kg3 {[%emt 0:03:19]} Kg7 {[%emt 0:06:50]} 42. Kf4 {[%emt 0:05:20]} Rd6 {[%emt 0:03:01]} (42... Nd4 43. Rf2 $14) 43. Kg3 {[%emt 0:07:19]} Rd8 {[%emt 0:03:15]} 44. Ba5 {[%emt 0:06:52]} Rc8 {[%emt 0:02:14]} 45. Rf2 {[%emt 0:03:06]} Nd4 {[%emt 0:02:40]} 46. Bg6 {[%emt 0:02:54]} c4 {[%emt 0:03:57]} 47. bxc4 {[%emt 0:01:40]} dxc4 {[%emt 0:00:22] Hoping for ...c3.} (47... Rxc4 $5 {[%cal Rc4a4]} 48. Rh2 Ra4 49. Rh7+ Kg8 $11) 48. Rd2 {[%emt 0:00:21]} (48. Kf4 $5 {[%cal Rf4e4]} Bd3 49. Rh2 Ne6+ 50. fxe6 Kxg6 51. Rh3 $11) 48... Bd3 {[%emt 0:00:41]} 49. g5 {[%emt 0:02:04]} Nb5 {[%emt 0:12:15] Inhibits Bc3.} ({Black should play} 49... Bxf5 $11 50. Bh5 Nb5) 50. a4 {[%emt 0:00:56]} (50. Kg4 $14 {is superior.} fxg5 51. Kxg5) 50... Nd6 {[%emt 0:00:00]} 51. gxf6+ {[%emt 0:01:18]} Kxf6 {[%emt 0:00:00]} 52. Kf4 {[%emt 0:00:29]} Ke7 {[%emt 0:00:00]} (52... Nxf5 $2 53. Bxf5 Bxf5 54. Bc3+ Ke6 55. Re2+ Kd6 56. Kxf5 $18) 53. Bb4 {[%emt 0:01:25] Ke5 is the strong threat.} Kd7 {[%emt 0:00:00]} (53... Rb8 $11 {remains equal.} 54. Bc5 Rb1) 54. Ke5 $16 {[%emt 0:00:31]} Ne4 {[%emt 0:00:22]} 55. Rh2 {[%emt 0:00:57]} (55. Rxd3+ $6 cxd3 56. f6 d2 57. Bxd2 Nd6 $11) 55... Ng5 {[%emt 0:00:52] Against Rh7+} (55... c3 $2 56. Rh7+ (56. Rh3 Rc5+ 57. Bxc5 Nxc5 $16) 56... Kc6 57. Bf7 $18 (57. f6 c2 $11)) (55... Kc7 $16) 56. Kf4 $1 $18 {[%emt 0:00:37]} Ne4 {[%emt 0:00:34]} 57. Bf7 $2 {[%emt 0:00:34]} (57. Rh7+ $1 $18 {is the precise move to win.} Kc6 58. Re7) 57... Rb8 $16 {[%emt 0:00:47]} 58. Be6+ $1 {[%emt 0:00:16]} Kc6 {[%emt 0:00:08]} 59. Be1 {[%emt 0:00:23]} (59. Ba3 $1 $16 {stays on course. And now Rh6 would win.} Kc7 60. Bxc4 $1 {[%mdl 512]} Bxc4 61. Rc2 (61. Kxe4 Bd3+ 62. Kxd3 Rb3+ 63. Kd4 Rxa3 $16)) 59... Rb1 {[%emt 0:00:28]} ({Better is} 59... c3 $17 {aiming for ...c2.} 60. Bxc3 Nxc3) 60. Rh6 {[%emt 0:00:52]} Kc5 {[%emt 0:00:30]} 61. Ba5 {[%emt 0:00:17][%mdl 8192] [#]} (61. Rh1 $1 $11 {and White has nothing to worry.}) 61... Kd4 $1 $19 {[%emt 0:00:20]} ({Not} 61... c3 62. Rh7 Bc2 63. Rc7+ (63. Ke5 Bxa4 64. Rc7+ Kb5 $16) 63... Kd6 64. Rd7+ Kc6 65. Ke5 Bxa4 66. Rc7+ (66. Kxe4 c2 $11) 66... Kb5 67. Bxc3 $16 (67. Kxe4 Bc2+ 68. Ke5 Re1+ 69. Kd4 Kxa5 $11)) 62. Rh8 $2 {[%emt 0:00:58]} (62. Kf3 c3 63. Bxc3+ Nxc3 64. a5) 62... Rf1+ {[%emt 0:00:22]} 63. Kg4 {[%emt 0:00:20]} Be2+ {[%emt 0:00:10] Weighted Error Value: White=0.41/Black=0.20 (precise)} 0-1